[Event "*** Titled Tuesday Blitz"]
[Site "Chess.com"]
[Date "2020.05.05"]
[Round "2"]
[White "Sam_ChessMood"]
[Black "Gurvich_Vitaly"]
[Result "1-0"]
[WhiteElo "2866"]
[BlackElo "2558"]
[TimeControl "180+1"]
[EndTime "10:14:20 PDT"]
[Termination "Sam_ChessMood won by resignation"]

1. e4 {[%clk 0:03:00.9]} 1... c6 {[%clk 0:02:59.5]} 2. Nf3 {[%clk 0:03:00.2]}
2... d5 {[%clk 0:02:58.8]} 3. d3 {[%clk 0:03:00.7]} 3... dxe4 {[%clk 0:02:59.5]}
4. dxe4 {[%clk 0:03:00.7]} 4... Qxd1+ {[%clk 0:02:54.7]} 5. Kxd1 {[%clk
0:03:01.6]} 5... Bg4 {[%clk 0:02:54.8]} 6. Be2 {[%clk 0:03:01.1]} 6... Bxf3
{[%clk 0:02:55]} 7. Bxf3 {[%clk 0:03:00.2]} 7... Nd7 {[%clk 0:02:55.9]} 8. c3
{[%clk 0:02:41.3]} 8... Ngf6 {[%clk 0:02:52.9]} 9. Kc2 {[%clk 0:02:38.3]} 9...
Ne5 {[%clk 0:02:51.6]} 10. a4 {[%clk 0:02:30.9]} 10... Nxf3 {[%clk 0:02:47.4]}
11. gxf3 {[%clk 0:02:31.8]} 11... a5 {[%clk 0:02:41.5]} 12. Nd2 {[%clk
0:02:31.6]} 12... e6 {[%clk 0:02:39.5]} 13. Nc4 {[%clk 0:02:31.5]} 13... Nd7
{[%clk 0:02:39.2]} 14. Rd1 {[%clk 0:02:21.3]} 14... f6 {[%clk 0:02:15.4]} 15.
Rxd7 {[%clk 0:02:11.9]} 15... Kxd7 {[%clk 0:02:11.9]} 16. Nb6+ {[%clk
0:02:12.1]} 16... Kd8 {[%clk 0:01:45.1]} 17. Nxa8 {[%clk 0:02:12]} 17... Bc5
{[%clk 0:01:43.9]} 18. Be3 {[%clk 0:02:10.9]} 18... Bxe3 {[%clk 0:01:42.2]} 19.
fxe3 {[%clk 0:02:10.8]} 19... Ke7 {[%clk 0:01:38.7]} 20. Nb6 {[%clk 0:02:10.1]}
1-0

[Event "*** Titled Tuesday Blitz"]
[Site "Chess.com"]
[Date "2020.05.05"]
[Round "2"]
[White "Jadeit90"]
[Black "KuzubovYuriy"]
[Result "0-1"]
[WhiteElo "2407"]
[BlackElo "2763"]
[TimeControl "180+1"]
[EndTime "10:14:22 PDT"]
[Termination "KuzubovYuriy won by resignation"]

1. g3 {[%clk 0:02:58.4]} 1... d5 {[%clk 0:02:58.5]} 2. Bg2 {[%clk 0:02:58.7]}
2... Nf6 {[%clk 0:02:58]} 3. c4 {[%clk 0:02:58.9]} 3... e6 {[%clk 0:02:54.9]} 4.
cxd5 {[%clk 0:02:59]} 4... exd5 {[%clk 0:02:54.9]} 5. Nf3 {[%clk 0:02:59.7]}
5... Bg4 {[%clk 0:02:52.9]} 6. O-O {[%clk 0:03:00.3]} 6... c6 {[%clk 0:02:48.7]}
7. d4 {[%clk 0:03:00.4]} 7... Bd6 {[%clk 0:02:47.1]} 8. Nc3 {[%clk 0:03:00.7]}
8... Nbd7 {[%clk 0:02:46.7]} 9. Bf4 {[%clk 0:03:00.7]} 9... Bxf4 {[%clk
0:02:43.7]} 10. gxf4 {[%clk 0:03:01.6]} 10... Qe7 {[%clk 0:02:40.8]} 11. Ne5
{[%clk 0:03:01.1]} 11... Bf5 {[%clk 0:02:40.3]} 12. e3 {[%clk 0:03:00.3]} 12...
Nb6 {[%clk 0:02:34.4]} 13. Na4 {[%clk 0:02:40.8]} 13... Nxa4 {[%clk 0:02:28.5]}
14. Qxa4 {[%clk 0:02:40.4]} 14... O-O {[%clk 0:02:29.1]} 15. b4 {[%clk
0:02:39.4]} 15... Ne4 {[%clk 0:02:25.3]} 16. Qd1 {[%clk 0:02:21.6]} 16... f6
{[%clk 0:02:22.1]} 17. Nd3 {[%clk 0:02:20.1]} 17... Kh8 {[%clk 0:02:19.5]} 18.
Nc5 {[%clk 0:02:20.2]} 18... Rg8 {[%clk 0:02:15.4]} 19. Nxe4 {[%clk 0:02:19.8]}
19... dxe4 {[%clk 0:02:15.5]} 20. Qh5 {[%clk 0:02:01.1]} 20... g6 {[%clk
0:02:13.3]} 21. Qh4 {[%clk 0:02:00.9]} 21... g5 {[%clk 0:02:11.7]} 22. fxg5
{[%clk 0:01:56.8]} 22... Rxg5 {[%clk 0:02:11.2]} 23. Kh1 {[%clk 0:01:57]} 23...
Rag8 {[%clk 0:02:08.8]} 24. Rg1 {[%clk 0:01:55.7]} 24... Qg7 {[%clk 0:02:04.9]}
0-1

[Event "*** Titled Tuesday Blitz"]
[Site "Chess.com"]
[Date "2020.05.05"]
[Round "2"]
[White "mbachez"]
[Black "violetflower04"]
[Result "1-0"]
[WhiteElo "2441"]
[BlackElo "2201"]
[TimeControl "180+1"]
[EndTime "10:14:36 PDT"]
[Termination "mbachez won by resignation"]

1. e4 {[%clk 0:03:00.9]} 1... c5 {[%clk 0:02:59.5]} 2. Nf3 {[%clk 0:03:00.1]}
2... e6 {[%clk 0:03:00.1]} 3. g3 {[%clk 0:02:59.3]} 3... Nf6 {[%clk 0:03:00.3]}
4. e5 {[%clk 0:02:58.1]} 4... Nd5 {[%clk 0:02:59.9]} 5. Bg2 {[%clk 0:02:58.4]}
5... d6 {[%clk 0:02:58.3]} 6. exd6 {[%clk 0:02:57.8]} 6... Bxd6 {[%clk
0:02:59.2]} 7. O-O {[%clk 0:02:58]} 7... O-O {[%clk 0:02:59.6]} 8. Na3 {[%clk
0:02:58.6]} 8... Nb6 {[%clk 0:02:51.3]} 9. d3 {[%clk 0:02:57.9]} 9... Nc6 {[%clk
0:02:50.5]} 10. Nb5 {[%clk 0:02:57.7]} 10... Be7 {[%clk 0:02:44]} 11. Bf4 {[%clk
0:02:57.1]} 11... Bd7 {[%clk 0:02:44.4]} 12. a4 {[%clk 0:02:51.3]} 12... a6
{[%clk 0:02:42.8]} 13. Bc7 {[%clk 0:02:47]} 13... Qc8 {[%clk 0:02:33.5]} 14.
Bxb6 {[%clk 0:02:46.3]} 14... axb5 {[%clk 0:02:33.8]} 15. axb5 {[%clk
0:02:46.3]} 15... Rxa1 {[%clk 0:02:25.9]} 16. Qxa1 {[%clk 0:02:47.2]} 16... Nb4
{[%clk 0:02:26.3]} 17. c4 {[%clk 0:01:58.7]} 17... Nxd3 {[%clk 0:02:17.8]} 18.
Rd1 {[%clk 0:01:58.3]} 18... Nb4 {[%clk 0:02:13.7]} 19. Ne5 {[%clk 0:01:58.2]}
19... Be8 {[%clk 0:02:13.5]} 20. Qa7 {[%clk 0:01:57.8]} 20... Bxb5 {[%clk
0:01:38.7]} 21. cxb5 {[%clk 0:01:55.5]} 21... Bf6 {[%clk 0:01:38.6]} 1-0

[Event "*** Titled Tuesday Blitz"]
[Site "Chess.com"]
[Date "2020.05.05"]
[Round "2"]
[White "GracefulYear"]
[Black "mirochka"]
[Result "1-0"]
[WhiteElo "2429"]
[BlackElo "2183"]
[TimeControl "180+1"]
[EndTime "10:14:45 PDT"]
[Termination "GracefulYear won by resignation"]

1. b3 {[%clk 0:03:00.9]} 1... d5 {[%clk 0:02:53.9]} 2. Bb2 {[%clk 0:02:59.1]}
2... Nf6 {[%clk 0:02:53.2]} 3. g3 {[%clk 0:02:59.3]} 3... Bg4 {[%clk 0:02:47.4]}
4. Bg2 {[%clk 0:02:59]} 4... e6 {[%clk 0:02:45.9]} 5. h3 {[%clk 0:02:58.9]} 5...
Bh5 {[%clk 0:02:45.2]} 6. g4 {[%clk 0:02:58.6]} 6... Bg6 {[%clk 0:02:44.9]} 7.
e3 {[%clk 0:02:58.9]} 7... h5 {[%clk 0:02:29.4]} 8. g5 {[%clk 0:02:53.7]} 8...
Nfd7 {[%clk 0:02:26.3]} 9. h4 {[%clk 0:02:53]} 9... f6 {[%clk 0:02:21.3]} 10.
Nh3 {[%clk 0:02:44.8]} 10... Nc6 {[%clk 0:02:15.3]} 11. d3 {[%clk 0:02:41.5]}
11... Nce5 {[%clk 0:02:12.5]} 12. Nd2 {[%clk 0:02:40]} 12... Ng4 {[%clk
0:02:10.2]} 13. Qe2 {[%clk 0:02:34.9]} 13... Bc5 {[%clk 0:02:00]} 14. O-O-O
{[%clk 0:02:33]} 14... Qe7 {[%clk 0:01:55.5]} 15. Kb1 {[%clk 0:02:30.5]} 15...
O-O-O {[%clk 0:01:46.1]} 16. d4 {[%clk 0:02:29.9]} 16... Ba3 {[%clk 0:01:44.3]}
17. f3 {[%clk 0:02:29.2]} 17... Bxb2 {[%clk 0:01:25.7]} 18. Kxb2 {[%clk
0:02:30.1]} 18... fxg5 {[%clk 0:01:20.2]} 19. hxg5 {[%clk 0:02:27.4]} 19... e5
{[%clk 0:01:14.8]} 20. fxg4 {[%clk 0:02:27.1]} 20... hxg4 {[%clk 0:01:14.3]} 21.
Qxg4 {[%clk 0:02:24.8]} 21... e4 {[%clk 0:01:08.4]} 22. Nf4 {[%clk 0:02:23.4]}
1-0

[Event "*** Titled Tuesday Blitz"]
[Site "Chess.com"]
[Date "2020.05.05"]
[Round "2"]
[White "MikhailovViacheslav"]
[Black "HansCoolNiemann"]
[Result "1-0"]
[WhiteElo "2570"]
[BlackElo "2825"]
[TimeControl "180+1"]
[EndTime "10:14:54 PDT"]
[Termination "MikhailovViacheslav won by resignation"]

1. Nf3 {[%clk 0:02:59.6]} 1... d5 {[%clk 0:02:59]} 2. g3 {[%clk 0:02:59.9]} 2...
Bg4 {[%clk 0:02:55.2]} 3. Bg2 {[%clk 0:02:59.9]} 3... c6 {[%clk 0:02:55.7]} 4.
O-O {[%clk 0:02:57.8]} 4... Nd7 {[%clk 0:02:55.3]} 5. d4 {[%clk 0:02:57.9]} 5...
Ngf6 {[%clk 0:02:54.2]} 6. c4 {[%clk 0:02:58]} 6... e6 {[%clk 0:02:53.3]} 7. Nc3
{[%clk 0:02:57.4]} 7... Bd6 {[%clk 0:02:51.5]} 8. Qb3 {[%clk 0:02:57.4]} 8...
Qc8 {[%clk 0:02:46]} 9. Bg5 {[%clk 0:02:54.9]} 9... O-O {[%clk 0:02:39.6]} 10.
Rac1 {[%clk 0:02:52.4]} 10... h6 {[%clk 0:02:36.7]} 11. Bxf6 {[%clk 0:02:47.5]}
11... Nxf6 {[%clk 0:02:37.6]} 12. Ne5 {[%clk 0:02:45.4]} 12... dxc4 {[%clk
0:02:22.4]} 13. Nxc4 {[%clk 0:02:33.6]} 13... Be7 {[%clk 0:02:17.8]} 14. e4
{[%clk 0:02:30.1]} 14... Rd8 {[%clk 0:02:14.6]} 15. Ne3 {[%clk 0:02:21.5]} 15...
Rxd4 {[%clk 0:01:57.5]} 16. e5 {[%clk 0:02:21.6]} 16... Nh7 {[%clk 0:01:50.8]}
17. Nxg4 {[%clk 0:02:13.4]} 17... Rxg4 {[%clk 0:01:50.1]} 18. f4 {[%clk
0:02:13.7]} 18... h5 {[%clk 0:01:34.4]} 19. Be4 {[%clk 0:02:08.4]} 19... h4
{[%clk 0:01:23.1]} 20. Kg2 {[%clk 0:02:03.5]} 20... f5 {[%clk 0:01:22]} 21. Bxf5
{[%clk 0:01:59.9]} 1-0

[Event "*** Titled Tuesday Blitz"]
[Site "Chess.com"]
[Date "2020.05.05"]
[Round "2"]
[White "Irina_Barchuk"]
[Black "Everyfishknows"]
[Result "1-0"]
[WhiteElo "2197"]
[BlackElo "2405"]
[TimeControl "180+1"]
[EndTime "10:14:57 PDT"]
[Termination "Irina_Barchuk won by resignation"]

1. e4 {[%clk 0:03:00.9]} 1... e5 {[%clk 0:02:51.8]} 2. Nf3 {[%clk 0:03:00.1]}
2... Nc6 {[%clk 0:02:51.6]} 3. d4 {[%clk 0:02:59.7]} 3... exd4 {[%clk
0:02:51.7]} 4. Bc4 {[%clk 0:02:59.6]} 4... Nf6 {[%clk 0:02:51.7]} 5. e5 {[%clk
0:02:59.1]} 5... d5 {[%clk 0:02:51.5]} 6. Bb5 {[%clk 0:02:58.9]} 6... Ne4 {[%clk
0:02:51.6]} 7. Nxd4 {[%clk 0:02:59]} 7... Bd7 {[%clk 0:02:51.9]} 8. Bxc6 {[%clk
0:02:58.1]} 8... bxc6 {[%clk 0:02:52.8]} 9. O-O {[%clk 0:02:53.6]} 9... Bc5
{[%clk 0:02:52.4]} 10. f3 {[%clk 0:02:52.5]} 10... Ng5 {[%clk 0:02:52.9]} 11.
Be3 {[%clk 0:02:52.7]} 11... Bb6 {[%clk 0:02:52.5]} 12. f4 {[%clk 0:02:51.4]}
12... Ne4 {[%clk 0:02:52.9]} 13. Nd2 {[%clk 0:02:38.6]} 13... Nxd2 {[%clk
0:02:52.7]} 14. Qxd2 {[%clk 0:02:36.9]} 14... c5 {[%clk 0:02:53]} 15. Nb3 {[%clk
0:02:29.2]} 15... d4 {[%clk 0:02:52.9]} 16. Bf2 {[%clk 0:02:29.4]} 16... Bc6
{[%clk 0:02:52.8]} 17. c4 {[%clk 0:02:19.7]} 17... Qd7 {[%clk 0:02:41.3]} 18.
Bh4 {[%clk 0:01:49.3]} 18... Qg4 {[%clk 0:02:31.2]} 19. Qf2 {[%clk 0:01:40.3]}
19... Bxg2 {[%clk 0:02:19.4]} 20. Qxg2 {[%clk 0:01:39.8]} 20... Qxh4 {[%clk
0:02:19.7]} 21. Qxa8+ {[%clk 0:01:40.1]} 21... Ke7 {[%clk 0:02:08.5]} 22. Qxh8
{[%clk 0:01:27.8]} 22... Qg4+ {[%clk 0:02:03.6]} 23. Kh1 {[%clk 0:01:27.3]}
23... d3 {[%clk 0:01:59.5]} 24. Qa8 {[%clk 0:01:23.9]} 1-0

[Event "*** Titled Tuesday Blitz"]
[Site "Chess.com"]
[Date "2020.05.05"]
[Round "2"]
[White "m_ezat"]
[Black "Eloist"]
[Result "1-0"]
[WhiteElo "2470"]
[BlackElo "2242"]
[TimeControl "180+1"]
[EndTime "10:15:00 PDT"]
[Termination "m_ezat won by checkmate"]

1. d4 {[%clk 0:03:00.9]} 1... e6 {[%clk 0:02:59.3]} 2. c4 {[%clk 0:03:00.8]}
2... Nf6 {[%clk 0:02:59.3]} 3. Nc3 {[%clk 0:03:00.8]} 3... Bb4 {[%clk
0:02:58.9]} 4. e3 {[%clk 0:03:00.6]} 4... O-O {[%clk 0:02:57.6]} 5. a3 {[%clk
0:03:00.7]} 5... Bxc3+ {[%clk 0:02:55.1]} 6. bxc3 {[%clk 0:03:01.3]} 6... c5
{[%clk 0:02:53.8]} 7. Bd3 {[%clk 0:03:00.1]} 7... Nc6 {[%clk 0:02:52]} 8. Ne2
{[%clk 0:02:59.5]} 8... d6 {[%clk 0:02:52]} 9. O-O {[%clk 0:02:59.8]} 9... e5
{[%clk 0:02:52.1]} 10. f3 {[%clk 0:03:00.3]} 10... Re8 {[%clk 0:02:44.2]} 11. e4
{[%clk 0:03:00.1]} 11... h6 {[%clk 0:02:30.6]} 12. Qc2 {[%clk 0:02:54.3]} 12...
b6 {[%clk 0:02:27.7]} 13. f4 {[%clk 0:02:50.9]} 13... exd4 {[%clk 0:02:12.5]}
14. cxd4 {[%clk 0:02:50]} 14... Nxd4 {[%clk 0:02:02]} 15. Nxd4 {[%clk
0:02:49.4]} 15... cxd4 {[%clk 0:02:02.9]} 16. Bb2 {[%clk 0:02:49.4]} 16... Bb7
{[%clk 0:01:45.4]} 17. Rae1 {[%clk 0:02:44.8]} 17... Nd7 {[%clk 0:01:34.6]} 18.
Bxd4 {[%clk 0:02:43.6]} 18... Nc5 {[%clk 0:01:33]} 19. Qb2 {[%clk 0:02:40.6]}
19... Nxd3 {[%clk 0:01:25.8]} 20. Qc3 {[%clk 0:02:40.3]} 20... Nxe1 {[%clk
0:01:24.4]} 21. Bxg7 {[%clk 0:02:40.3]} 21... Rxe4 {[%clk 0:01:12.5]} 22. Bf6
{[%clk 0:02:38.9]} 22... Qd7 {[%clk 0:00:58.8]} 23. Qg3+ {[%clk 0:02:37.5]}
23... Kf8 {[%clk 0:00:37.9]} 24. Qg7+ {[%clk 0:02:36.7]} 24... Ke8 {[%clk
0:00:38]} 25. Qg8# {[%clk 0:02:36.9]} 1-0

[Event "*** Titled Tuesday Blitz"]
[Site "Chess.com"]
[Date "2020.05.05"]
[Round "2"]
[White "Perimir"]
[Black "Ariadna_Atreides"]
[Result "1-0"]
[WhiteElo "2359"]
[BlackElo "1989"]
[TimeControl "180+1"]
[EndTime "10:15:03 PDT"]
[Termination "Perimir won by resignation"]

1. e4 {[%clk 0:03:00.9]} 1... c5 {[%clk 0:02:59.7]} 2. Nc3 {[%clk 0:02:59.6]}
2... Nc6 {[%clk 0:02:58.4]} 3. g3 {[%clk 0:02:59.9]} 3... g6 {[%clk 0:02:58]} 4.
Bg2 {[%clk 0:03:00.6]} 4... Bg7 {[%clk 0:02:58.6]} 5. d3 {[%clk 0:03:01.2]} 5...
e6 {[%clk 0:02:58.6]} 6. Be3 {[%clk 0:03:01.9]} 6... d6 {[%clk 0:02:50.6]} 7.
Qd2 {[%clk 0:03:01.8]} 7... Nge7 {[%clk 0:02:45.1]} 8. Bh6 {[%clk 0:03:01.2]}
8... Bf6 {[%clk 0:02:33.4]} 9. h4 {[%clk 0:02:53.5]} 9... Qc7 {[%clk 0:02:31.1]}
10. Nh3 {[%clk 0:02:34]} 10... Nd4 {[%clk 0:02:24.4]} 11. O-O {[%clk 0:02:30.3]}
11... Bd7 {[%clk 0:02:22.7]} 12. Ng5 {[%clk 0:02:23.7]} 12... Nec6 {[%clk
0:02:01.4]} 13. f4 {[%clk 0:02:13.6]} 13... e5 {[%clk 0:01:29.2]} 14. Nd5 {[%clk
0:02:07.1]} 14... Qd8 {[%clk 0:01:27.7]} 15. fxe5 {[%clk 0:02:07.3]} 15... Bxg5
{[%clk 0:01:04.8]} 16. Bxg5 {[%clk 0:02:08.2]} 16... Qc7 {[%clk 0:01:04.7]} 17.
Nxc7+ {[%clk 0:01:50.2]} 1-0

[Event "*** Titled Tuesday Blitz"]
[Site "Chess.com"]
[Date "2020.05.05"]
[Round "2"]
[White "CalinGheorghiu"]
[Black "Mazanchenko_Dmitry"]
[Result "1-0"]
[WhiteElo "2393"]
[BlackElo "2133"]
[TimeControl "180+1"]
[EndTime "10:15:07 PDT"]
[Termination "CalinGheorghiu won by resignation"]

1. e4 {[%clk 0:02:58.4]} 1... c5 {[%clk 0:02:58.5]} 2. Nf3 {[%clk 0:02:56.9]}
2... d6 {[%clk 0:02:57.7]} 3. Bb5+ {[%clk 0:02:52.8]} 3... Bd7 {[%clk
0:02:56.8]} 4. Bxd7+ {[%clk 0:02:51.5]} 4... Qxd7 {[%clk 0:02:57.7]} 5. O-O
{[%clk 0:02:51.8]} 5... Nf6 {[%clk 0:02:56.8]} 6. Re1 {[%clk 0:02:52]} 6... e6
{[%clk 0:02:56.1]} 7. d4 {[%clk 0:02:50.8]} 7... cxd4 {[%clk 0:02:55.5]} 8. Nxd4
{[%clk 0:02:49.9]} 8... Nc6 {[%clk 0:02:55.2]} 9. c4 {[%clk 0:02:48.6]} 9... Be7
{[%clk 0:02:51.8]} 10. Nc3 {[%clk 0:02:45.9]} 10... O-O {[%clk 0:02:50]} 11. b3
{[%clk 0:02:37.9]} 11... a6 {[%clk 0:02:47.1]} 12. Bb2 {[%clk 0:02:36.2]} 12...
Qc7 {[%clk 0:02:46]} 13. Rc1 {[%clk 0:02:31.8]} 13... Rac8 {[%clk 0:02:43.7]}
14. Nd5 {[%clk 0:02:20.6]} 14... exd5 {[%clk 0:02:40.9]} 15. cxd5 {[%clk
0:02:20.1]} 15... Qb6 {[%clk 0:02:21.2]} 16. dxc6 {[%clk 0:02:16.3]} 16... bxc6
{[%clk 0:02:22.1]} 17. Nf5 {[%clk 0:02:13.3]} 17... Bd8 {[%clk 0:02:05.2]} 18.
Qxd6 {[%clk 0:01:59.1]} 18... Bc7 {[%clk 0:01:36.6]} 19. Ne7+ {[%clk 0:01:51.6]}
19... Kh8 {[%clk 0:01:32.1]} 20. Qxf6 {[%clk 0:01:52]} 1-0

[Event "*** Titled Tuesday Blitz"]
[Site "Chess.com"]
[Date "2020.05.05"]
[Round "2"]
[White "Sesleria"]
[Black "gui_borba"]
[Result "0-1"]
[WhiteElo "2059"]
[BlackElo "2372"]
[TimeControl "180+1"]
[EndTime "10:15:15 PDT"]
[Termination "gui_borba won by resignation"]

1. e4 {[%clk 0:03:00.9]} 1... c6 {[%clk 0:03:00.3]} 2. c4 {[%clk 0:02:52.9]}
2... d5 {[%clk 0:03:01.2]} 3. cxd5 {[%clk 0:02:53.1]} 3... cxd5 {[%clk
0:03:02.1]} 4. exd5 {[%clk 0:02:53.5]} 4... Nf6 {[%clk 0:03:02.1]} 5. Nc3 {[%clk
0:02:53]} 5... Nxd5 {[%clk 0:03:01.3]} 6. Bc4 {[%clk 0:02:52.5]} 6... e6 {[%clk
0:02:59.4]} 7. Nf3 {[%clk 0:02:51.7]} 7... Nc6 {[%clk 0:02:59.1]} 8. O-O {[%clk
0:02:50.2]} 8... Be7 {[%clk 0:02:59.5]} 9. d4 {[%clk 0:02:49.5]} 9... O-O {[%clk
0:02:59]} 10. a3 {[%clk 0:02:47.5]} 10... Bf6 {[%clk 0:02:57.5]} 11. Re1 {[%clk
0:02:44.5]} 11... Nce7 {[%clk 0:02:57]} 12. Ne4 {[%clk 0:02:43.9]} 12... Nf5
{[%clk 0:02:49.4]} 13. Nxf6+ {[%clk 0:02:40.5]} 13... Qxf6 {[%clk 0:02:50.1]}
14. Ne5 {[%clk 0:02:39.1]} 14... Rd8 {[%clk 0:02:46.4]} 15. Qa4 {[%clk
0:02:14.8]} 15... Nb6 {[%clk 0:02:16.9]} 16. Qa5 {[%clk 0:01:48.4]} 16... Nxd4
{[%clk 0:02:07]} 0-1

[Event "*** Titled Tuesday Blitz"]
[Site "Chess.com"]
[Date "2020.05.05"]
[Round "2"]
[White "Frogo47"]
[Black "Chessalary"]
[Result "1-0"]
[WhiteElo "2414"]
[BlackElo "2166"]
[TimeControl "180+1"]
[EndTime "10:15:17 PDT"]
[Termination "Frogo47 won by resignation"]

1. e4 {[%clk 0:03:00.9]} 1... c5 {[%clk 0:02:59.7]} 2. Nf3 {[%clk 0:03:00.5]}
2... d6 {[%clk 0:02:59.9]} 3. d4 {[%clk 0:03:00.1]} 3... cxd4 {[%clk 0:03:00.8]}
4. Nxd4 {[%clk 0:03:00.4]} 4... Nf6 {[%clk 0:03:01.7]} 5. Nc3 {[%clk 0:03:00.7]}
5... a6 {[%clk 0:03:02.2]} 6. Bg5 {[%clk 0:03:00.5]} 6... e6 {[%clk 0:03:01.8]}
7. f4 {[%clk 0:03:00.2]} 7... Nbd7 {[%clk 0:03:02.3]} 8. Qf3 {[%clk 0:02:57.9]}
8... Qc7 {[%clk 0:03:00.2]} 9. O-O-O {[%clk 0:02:57.5]} 9... b5 {[%clk
0:02:58.8]} 10. a3 {[%clk 0:02:49.6]} 10... Bb7 {[%clk 0:02:57.8]} 11. Kb1
{[%clk 0:02:44.5]} 11... Be7 {[%clk 0:02:56.9]} 12. Bd3 {[%clk 0:02:41]} 12...
O-O {[%clk 0:02:55.8]} 13. Rhe1 {[%clk 0:02:34.7]} 13... Rac8 {[%clk 0:02:54.8]}
14. Qg3 {[%clk 0:02:30.8]} 14... Nc5 {[%clk 0:02:23]} 15. Qh4 {[%clk 0:02:16.3]}
15... Nxd3 {[%clk 0:02:11.2]} 16. Rxd3 {[%clk 0:02:15.3]} 16... Rfe8 {[%clk
0:01:31.5]} 17. Rg3 {[%clk 0:01:57.3]} 17... Kh8 {[%clk 0:01:21.5]} 18. Rh3
{[%clk 0:01:54.5]} 18... Kg8 {[%clk 0:01:21.3]} 19. e5 {[%clk 0:01:48.6]} 19...
dxe5 {[%clk 0:01:12.8]} 20. fxe5 {[%clk 0:01:48.5]} 1-0

[Event "*** Titled Tuesday Blitz"]
[Site "Chess.com"]
[Date "2020.05.05"]
[Round "2"]
[White "dopolian"]
[Black "madalin18"]
[Result "1-0"]
[WhiteElo "2406"]
[BlackElo "2152"]
[TimeControl "180+1"]
[EndTime "10:15:22 PDT"]
[Termination "dopolian won by resignation"]

1. Nf3 {[%clk 0:03:00.9]} 1... Nf6 {[%clk 0:02:59.7]} 2. c4 {[%clk 0:03:00.6]}
2... g6 {[%clk 0:02:59.3]} 3. b3 {[%clk 0:03:00.7]} 3... Bg7 {[%clk 0:02:59.6]}
4. Bb2 {[%clk 0:03:01.3]} 4... O-O {[%clk 0:02:59.9]} 5. g3 {[%clk 0:03:01.7]}
5... d6 {[%clk 0:03:00.1]} 6. Bg2 {[%clk 0:03:00.9]} 6... e5 {[%clk 0:03:00.2]}
7. O-O {[%clk 0:03:00.5]} 7... c6 {[%clk 0:02:58.3]} 8. d3 {[%clk 0:02:59.2]}
8... Bg4 {[%clk 0:02:57.1]} 9. Nbd2 {[%clk 0:02:58.4]} 9... Nbd7 {[%clk
0:02:55.6]} 10. Qc2 {[%clk 0:02:55]} 10... Re8 {[%clk 0:02:55.2]} 11. h3 {[%clk
0:02:54]} 11... Bf5 {[%clk 0:02:49.1]} 12. e4 {[%clk 0:02:35.6]} 12... Be6
{[%clk 0:02:48.5]} 13. d4 {[%clk 0:02:32.2]} 13... exd4 {[%clk 0:02:36.4]} 14.
Nxd4 {[%clk 0:02:33.1]} 14... Ne5 {[%clk 0:02:28.3]} 15. f4 {[%clk 0:02:28.4]}
15... Nh5 {[%clk 0:02:18.2]} 16. Kh2 {[%clk 0:01:54.5]} 16... Bc8 {[%clk
0:01:12.3]} 17. fxe5 {[%clk 0:01:42.4]} 17... Bxe5 {[%clk 0:01:11.8]} 18. Ne2
{[%clk 0:01:42]} 18... Qh4 {[%clk 0:01:10.8]} 19. Bxe5 {[%clk 0:01:40.9]} 1-0

[Event "*** Titled Tuesday Blitz"]
[Site "Chess.com"]
[Date "2020.05.05"]
[Round "2"]
[White "sm_sharon"]
[Black "Nikithebest"]
[Result "0-1"]
[WhiteElo "2214"]
[BlackElo "2452"]
[TimeControl "180+1"]
[EndTime "10:15:28 PDT"]
[Termination "Nikithebest won by resignation"]

1. e4 {[%clk 0:00:45.8]} 1... c5 {[%clk 0:02:58.8]} 2. Nf3 {[%clk 0:00:45.4]}
2... d6 {[%clk 0:02:59.1]} 3. d4 {[%clk 0:00:46.3]} 3... cxd4 {[%clk 0:02:59.5]}
4. Nxd4 {[%clk 0:00:47.2]} 4... Nf6 {[%clk 0:02:59.9]} 5. Nc3 {[%clk 0:00:47.5]}
5... g6 {[%clk 0:03:00.2]} 6. Be3 {[%clk 0:00:47.3]} 6... a6 {[%clk 0:03:00.6]}
7. f3 {[%clk 0:00:46]} 7... b5 {[%clk 0:03:00.6]} 8. a3 {[%clk 0:00:44.2]} 8...
Bb7 {[%clk 0:02:58.9]} 9. Qd2 {[%clk 0:00:44.4]} 9... Nbd7 {[%clk 0:02:59.4]}
10. O-O-O {[%clk 0:00:39.7]} 10... Rc8 {[%clk 0:02:59.6]} 11. Kb1 {[%clk
0:00:39.3]} 11... Ne5 {[%clk 0:02:59.3]} 12. h4 {[%clk 0:00:37.8]} 12... h5
{[%clk 0:02:59.1]} 13. Be2 {[%clk 0:00:24.9]} 13... Bg7 {[%clk 0:02:59.3]} 14.
Rdg1 {[%clk 0:00:19.1]} 14... Qa5 {[%clk 0:02:52.3]} 15. g4 {[%clk 0:00:18.4]}
15... Nc4 {[%clk 0:02:39.8]} 16. Bxc4 {[%clk 0:00:18]} 16... Rxc4 {[%clk
0:02:39.1]} 17. g5 {[%clk 0:00:16.5]} 17... Nd7 {[%clk 0:02:35.9]} 18. Nd5
{[%clk 0:00:16.1]} 18... Qxd2 {[%clk 0:02:31.1]} 19. Bxd2 {[%clk 0:00:15.9]} 0-1

[Event "*** Titled Tuesday Blitz"]
[Site "Chess.com"]
[Date "2020.05.05"]
[Round "2"]
[White "DenLaz"]
[Black "DrBergerBerger"]
[Result "1-0"]
[WhiteElo "2692"]
[BlackElo "2476"]
[TimeControl "180+1"]
[EndTime "10:15:33 PDT"]
[Termination "DenLaz won by resignation"]

1. d4 {[%clk 0:03:00.9]} 1... d5 {[%clk 0:02:58.3]} 2. c4 {[%clk 0:03:00.4]}
2... dxc4 {[%clk 0:02:59.2]} 3. Nf3 {[%clk 0:02:59.6]} 3... Nf6 {[%clk
0:02:59.4]} 4. e3 {[%clk 0:03:00]} 4... a6 {[%clk 0:02:59.7]} 5. Bxc4 {[%clk
0:02:59.7]} 5... e6 {[%clk 0:03:00.3]} 6. O-O {[%clk 0:02:57.9]} 6... c5 {[%clk
0:03:00.8]} 7. Bb3 {[%clk 0:02:58.2]} 7... Nbd7 {[%clk 0:02:56.9]} 8. e4 {[%clk
0:02:37.3]} 8... cxd4 {[%clk 0:02:43.1]} 9. e5 {[%clk 0:02:31]} 9... Ng4 {[%clk
0:02:41.1]} 10. Bf4 {[%clk 0:02:29.4]} 10... Be7 {[%clk 0:01:45.4]} 11. h3
{[%clk 0:02:20.2]} 11... g5 {[%clk 0:01:43]} 12. Bg3 {[%clk 0:02:09.9]} 12...
Nh6 {[%clk 0:01:36.3]} 13. Nxd4 {[%clk 0:02:09.7]} 13... Nc5 {[%clk 0:01:32.6]}
14. Nc3 {[%clk 0:02:06.4]} 14... Nxb3 {[%clk 0:01:21.7]} 15. axb3 {[%clk
0:02:07.3]} 15... Bc5 {[%clk 0:01:20.7]} 16. Nf3 {[%clk 0:02:02]} 16... Qxd1
{[%clk 0:01:14.8]} 17. Rfxd1 {[%clk 0:02:02.9]} 17... Nf5 {[%clk 0:01:13.9]} 18.
Ne4 {[%clk 0:02:02.2]} 18... Nxg3 {[%clk 0:01:09.1]} 19. Nxc5 {[%clk 0:01:59.3]}
19... Ne2+ {[%clk 0:01:04]} 20. Kf1 {[%clk 0:01:57.3]} 20... Nf4 {[%clk
0:01:03.6]} 21. Nxg5 {[%clk 0:01:55.5]} 21... Nxg2 {[%clk 0:00:59.5]} 22. Kxg2
{[%clk 0:01:52.2]} 22... Rg8 {[%clk 0:00:59]} 23. Ne4 {[%clk 0:01:52.6]} 1-0